[Event "1st Bangalore GM-Open-B 2024"]
[Site "Bangalore"]
[Date "2024.01.20"]
[Round "6.3"]
[White "Patil Divya"]
[Black "Kadav Omkar"]
[Result "1-0"]
[ECO "B28"]
[WhiteElo "1669"]
[BlackElo "1725"]
[Annotator "NA RC"]
[PlyCount "156"]
[EventDate "2024.01.20"]
[EventType "swiss"]
[EventCountry "IND"]
[SourceTitle "playchess.com"]
[Source "ChessBase"]
[SourceQuality "1"]
[TimeControl "3600+30"]

1. e4 {[%emt 0:00:02]} c5 {[%emt 0:02:48]} 2. Nf3 {[%emt 0:00:10]} a6 {[%emt 0:01:32]} 3. d4 {[%emt 0:00:13]} cxd4 {[%emt 0:00:08]} 4. Nxd4 {[%emt 0:00:11]} Nf6 {[%emt 0:00:20]} 5. Nc3 {[%emt 0:00:15]} e5 {[%emt 0:00:37]} 6. Nf3 {[%emt 0:03:08]} Bb4 {[%emt 0:00:51]} 7. Bd3 {[%emt 0:00:17]} Bxc3+ {[%emt 0:00:42]} 8. bxc3 {[%emt 0:00:06]} d6 {[%emt 0:00:11]} 9. O-O {[%emt 0:05:25]} Qc7 {[%emt 0:04:07]} 10. Qd2 {[%emt 0:05:55]} Nbd7 {[%emt 0:01:59]} 11. Re1 {[%emt 0:05:30]} Nc5 {[%emt 0:01:33]} 12. Ba3 {[%emt 0:01:03]} Be6 {[%emt 0:03:42]} 13. Ng5 {[%emt 0:08:07]} h6 {[%emt 0:03:08]} 14. Nxe6 {[%emt 0:01:27]} Nxe6 {[%emt 0:02:41]} 15. Rad1 {[%emt 0:02:58]} Rd8 {[%emt 0:02:25]} 16. Bb4 {[%emt 0:06:10]} O-O {[%emt 0:01:43]} 17. c4 {[%emt 0:03:06]} Nd7 {[%emt 0:04:33]} 18. Qe3 {[%emt 0:07:49]} Ndc5 {[%emt 0:01:06]} 19. Kh1 {[%emt 0:02:48]} Qe7 {[%emt 0:01:26]} 20. Qg3 {[%emt 0:04:16]} Qg5 {[%emt 0:01:04]} 21. Re3 {[%emt 0:01:17]} Qxg3 {[%emt 0:00:25]} 22. Rxg3 {[%emt 0:00:51]} Rc8 {[%emt 0:02:11]} 23. Re3 {[%emt 0:00:47]} Rc6 {[%emt 0:01:31]} 24. f3 {[%emt 0:01:18]} Rfc8 {[%emt 0:00:32]} 25. Re2 {[%emt 0:01:17]} Kf8 {[%emt 0:01:32]} 26. Red2 {[%emt 0:00:09]} Ke7 {[%emt 0:00:39]} 27. Bf1 {[%emt 0:01:16]} a5 {[%emt 0:03:08]} 28. Bxa5 {[%emt 0:00:53]} Ra8 {[%emt 0:00:18]} 29. Bb4 {[%emt 0:00:39]} Rxa2 {[%emt 0:00:13]} 30. c3 {[%emt 0:01:26]} Rxd2 {[%emt 0:00:26]} 31. Rxd2 {[%emt 0:00:13]} Ra6 {[%emt 0:00:24]} 32. g3 {[%emt 0:01:11]} Ra1 {[%emt 0:04:28]} 33. Kg2 {[%emt 0:00:10]} Kd7 {[%emt 0:07:34]} 34. Kf2 {[%emt 0:00:55]} Kc6 {[%emt 0:01:10]} 35. h4 {[%emt 0:02:23]} b6 {[%emt 0:02:44]} 36. Bh3 {[%emt 0:02:17]} Nc7 {[%emt 0:00:28]} 37. Bc8 {[%emt 0:00:33]} h5 {[%emt 0:05:05]} 38. Ke2 {[%emt 0:01:04]} N7e6 {[%emt 0:03:08]} 39. Bxe6 {[%emt 0:00:27]} fxe6 {[%emt 0:00:05]} 40. Ke3 {[%emt 0:00:45]} g6 {[%emt 0:02:03]} 41. Kf2 {[%emt 0:00:18]} Rb1 {[%emt 0:01:36]} 42. Ke2 {[%emt 0:00:34]} Ra1 {[%emt 0:00:38]} 43. Kf2 {[%emt 0:00:12]} Ra8 {[%emt 0:00:29]} 44. Ke3 {[%emt 0:00:12]} Nb7 {[%emt 0:00:54]} 45. Kf2 {[%emt 0:01:15]} Rd8 {[%emt 0:02:28]} 46. Ke3 {[%emt 0:00:58]} Na5 {[%emt 0:00:25]} 47. Bxa5 {[%emt 0:00:21]} bxa5 {[%emt 0:00:04]} 48. Ra2 {[%emt 0:00:17]} Ra8 {[%emt 0:00:43]} 49. Ra4 {[%emt 0:00:30]} Kb6 {[%emt 0:01:00]} 50. Kd3 {[%emt 0:00:23]} Rc8 {[%emt 0:00:53]} 51. Ra3 {[%emt 0:00:25]} Ra8 {[%emt 0:00:39]} 52. Ra4 {[%emt 0:00:05]} Rf8 {[%emt 0:00:05]} 53. Ke3 {[%emt 0:00:06]} Ka6 {[%emt 0:00:16]} 54. Ra3 {[%emt 0:00:17]} Rc8 {[%emt 0:00:24]} 55. Kd3 {[%emt 0:00:16]} Rf8 {[%emt 0:00:16]} 56. Ke3 {[%emt 0:00:12]} Rb8 {[%emt 0:00:06]} 57. Ra1 {[%emt 0:00:52]} Rb3 {[%emt 0:00:38]} 58. Kd3 {[%emt 0:00:26]} Rb2 {[%emt 0:00:29]} 59. Ke3 {[%emt 0:01:15]} Rc2 {[%emt 0:00:46]} 60. Kd3 {[%emt 0:00:25]} Rg2 {[%emt 0:00:49]} 61. Ke3 {[%emt 0:00:08]} Kb6 {[%emt 0:00:27]} 62. Rb1+ {[%emt 0:00:18]} Kc5 {[%emt 0:01:06]} 63. Rb5+ {[%emt 0:00:33]} Kxc4 {[%emt 0:00:06]} 64. Rxa5 {[%emt 0:00:06]} d5 {[%emt 0:00:44]} 65. Ra6 {[%emt 0:01:19]} Kxc3 {[%emt 0:01:11]} 66. Rc6+ {[%emt 0:00:04]} Kb4 {[%emt 0:00:17]} 67. Rxe6 {[%emt 0:00:13]} d4+ {[%emt 0:00:58]} 68. Kd3 {[%emt 0:00:05]} Rxg3 {[%emt 0:00:45]} 69. Rxe5 {[%emt 0:00:06]} Rxf3+ {[%emt 0:00:19]} 70. Kxd4 {[%emt 0:00:07]} Rf4 {[%emt 0:00:43]} 71. Rg5 {[%emt 0:00:40]} Rxh4 {[%emt 0:00:19]} 72. Rxg6 {[%emt 0:00:04]} Rh1 {[%emt 0:00:32]} 73. Rb6+ {[%emt 0:00:09]} Ka5 {[%emt 0:00:20]} 74. Rh6 {[%emt 0:00:05]} h4 {[%emt 0:00:15]} 75. e5 {[%emt 0:01:15]} h3 {[%emt 0:00:21]} 76. e6 {[%emt 0:00:26]} h2 {[%emt 0:00:32]} 77. e7 {[%emt 0:00:17]} Re1 {[%emt 0:00:22]} 78. Rxh2 {[%emt 0:00:32]} Rxe7 {[%emt 0:00:08]} 1-0

[Event "1st Bangalore GM-Open-B 2024"]
[Site "Bangalore"]
[Date "2024.01.20"]
[Round "6.4"]
[White "Dawda Vihaan"]
[Black "Afreed T Khan"]
[Result "1/2-1/2"]
[ECO "A05"]
[WhiteElo "1706"]
[BlackElo "1668"]
[Annotator "NA RC"]
[PlyCount "75"]
[EventDate "2024.01.20"]
[EventType "swiss"]
[EventCountry "IND"]
[SourceTitle "playchess.com"]
[Source "ChessBase"]
[SourceQuality "1"]
[TimeControl "3600+30"]

1. Nf3 {[%emt 0:00:10]} Nf6 {[%emt 0:01:00]} 2. g3 {[%emt 0:00:08]} g6 {[%emt 0:00:07]} 3. b3 {[%emt 0:00:07]} Bg7 {[%emt 0:00:07]} 4. Bb2 {[%emt 0:00:08]} O-O {[%emt 0:00:08]} 5. Bg2 {[%emt 0:00:08]} c5 {[%emt 0:01:08]} 6. c4 {[%emt 0:00:13]} e6 {[%emt 0:03:14]} 7. O-O {[%emt 0:00:53]} d5 {[%emt 0:01:50]} 8. cxd5 {[%emt 0:00:42]} exd5 {[%emt 0:00:16]} 9. d4 {[%emt 0:00:08]} Ne4 {[%emt 0:00:59]} 10. Qc1 {[%emt 0:01:42]} Qf6 {[%emt 0:02:12]} 11. Nc3 {[%emt 0:05:22]} Be6 {[%emt 0:17:08]} 12. Na4 {[%emt 0:03:20]} cxd4 {[%emt 0:03:35]} 13. Bxd4 {[%emt 0:00:26]} Qe7 {[%emt 0:00:46]} 14. Qb2 {[%emt 0:01:10]} Bxd4 {[%emt 0:03:59]} 15. Nxd4 {[%emt 0:00:07]} Nc6 {[%emt 0:00:48]} 16. e3 {[%emt 0:07:31]} Rac8 {[%emt 0:01:25]} 17. Rfd1 {[%emt 0:03:21]} Ne5 {[%emt 0:03:40]} 18. f3 {[%emt 0:06:24]} Nf6 {[%emt 0:08:06]} 19. Nc3 {[%emt 0:01:48]} Rfd8 {[%emt 0:00:54]} 20. Rac1 {[%emt 0:01:17]} h5 {[%emt 0:01:56]} 21. h4 {[%emt 0:03:20]} a6 {[%emt 0:00:58]} 22. Qd2 {[%emt 0:01:20]} Qd6 {[%emt 0:04:34]} 23. Nce2 {[%emt 0:02:38]} Rxc1 {[%emt 0:00:41]} 24. Rxc1 {[%emt 0:00:35]} Rc8 {[%emt 0:01:55]} 25. Nf4 {[%emt 0:02:08]} Rxc1+ {[%emt 0:00:48]} 26. Qxc1 {[%emt 0:00:04]} Bd7 {[%emt 0:00:11]} 27. Qc3 {[%emt 0:02:09]} Nc6 {[%emt 0:03:34]} 28. Nxc6 {[%emt 0:01:48]} Qxc6 {[%emt 0:02:14]} 29. Qxc6 {[%emt 0:00:55]} Bxc6 {[%emt 0:00:46]} 30. Kf2 {[%emt 0:01:26]} Kf8 {[%emt 0:00:23]} 31. Ke2 {[%emt 0:01:19]} Ke7 {[%emt 0:02:21]} 32. Kd3 {[%emt 0:00:08]} Kd6 {[%emt 0:00:07]} 33. Kd4 {[%emt 0:00:04]} Ng8 {[%emt 0:01:00]} 34. e4 {[%emt 0:01:18]} dxe4 {[%emt 0:01:15]} 35. fxe4 {[%emt 0:00:04]} Ne7 {[%emt 0:00:45]} 36. Bf3 {[%emt 0:06:22]} Bd7 {[%emt 0:00:08]} 37. e5+ {[%emt 0:00:04]} Kc7 38. Ke4 {[%emt 0:00:04]} 1/2-1/2

[Event "1st Bangalore GM-Open-B 2024"]
[Site "Bangalore"]
[Date "2024.01.20"]
[Round "6.5"]
[White "Jaidambareesh N R"]
[Black "Andalamala Hemal Varshan"]
[Result "1-0"]
[ECO "E04"]
[WhiteElo "1757"]
[BlackElo "1578"]
[Annotator "NA RC"]
[PlyCount "101"]
[EventDate "2024.01.20"]
[EventType "swiss"]
[EventCountry "IND"]
[SourceTitle "playchess.com"]
[Source "ChessBase"]
[SourceQuality "1"]
[TimeControl "3600+30"]

1. Nf3 {[%emt 0:00:08]} c5 {[%emt 0:00:17]} 2. g3 {[%emt 0:00:08]} d5 {[%emt 0:00:12]} 3. Bg2 {[%emt 0:00:07]} Nf6 {[%emt 0:00:07]} 4. O-O {[%emt 0:00:10]} Nc6 {[%emt 0:00:05]} 5. d4 {[%emt 0:00:06]} e6 {[%emt 0:00:05]} 6. c4 {[%emt 0:00:11]} dxc4 {[%emt 0:00:06]} 7. dxc5 {[%emt 0:00:09]} Qxd1 {[%emt 0:00:09]} 8. Rxd1 {[%emt 0:00:07]} Bxc5 {[%emt 0:00:05]} 9. Nbd2 {[%emt 0:00:22]} c3 {[%emt 0:00:07]} 10. bxc3 {[%emt 0:00:07]} O-O {[%emt 0:01:52]} 11. Nb3 {[%emt 0:00:08]} Be7 {[%emt 0:00:09]} 12. c4 {[%emt 0:00:07]} Bd7 {[%emt 0:03:49]} 13. Bb2 {[%emt 0:00:27]} Rfd8 {[%emt 0:00:39]} 14. Nfd4 {[%emt 0:02:14]} Rac8 {[%emt 0:02:52]} 15. Nb5 {[%emt 0:02:35]} a6 {[%emt 0:06:39]} 16. Nd6 {[%emt 0:00:57]} Bxd6 {[%emt 0:00:19]} 17. Rxd6 {[%emt 0:00:09]} Be8 {[%emt 0:02:03]} 18. Rad1 {[%emt 0:00:46]} Rxd6 {[%emt 0:02:28]} 19. Rxd6 {[%emt 0:00:09]} b5 {[%emt 0:00:08]} 20. c5 {[%emt 0:03:24]} Kf8 {[%emt 0:02:56]} 21. f4 {[%emt 0:16:23]} Ke7 {[%emt 0:03:31]} 22. Bc3 {[%emt 0:07:36]} Bd7 {[%emt 0:05:31]} 23. Nd4 {[%emt 0:09:48]} Nb8 {[%emt 0:03:42]} 24. Rb6 {[%emt 0:07:03]} Nd5 {[%emt 0:00:42]} 25. Nf5+ {[%emt 0:00:45]} Kd8 {[%emt 0:03:48]} 26. Bxd5 {[%emt 0:00:45]} exd5 {[%emt 0:00:04]} 27. Nxg7 {[%emt 0:00:26]} Nc6 {[%emt 0:00:20]} 28. Bf6+ {[%emt 0:02:08]} Kc7 {[%emt 0:00:09]} 29. Rxa6 {[%emt 0:00:09]} Bg4 {[%emt 0:01:18]} 30. Kf2 {[%emt 0:00:53]} Kb7 {[%emt 0:02:51]} 31. Rb6+ {[%emt 0:00:19]} Kc7 {[%emt 0:00:18]} 32. Rxb5 {[%emt 0:00:09]} Ra8 {[%emt 0:00:12]} 33. Rb2 {[%emt 0:00:16]} Na5 {[%emt 0:01:56]} 34. Be5+ {[%emt 0:02:09]} Kc6 {[%emt 0:00:47]} 35. Rb8 {[%emt 0:01:32]} Ra7 {[%emt 0:00:13]} 36. Ne8 {[%emt 0:00:20]} Nc4 {[%emt 0:00:36]} 37. Nf6 {[%emt 0:01:46]} Be6 {[%emt 0:01:04]} 38. Bd4 {[%emt 0:01:46]} Rxa2 {[%emt 0:01:47]} 39. g4 {[%emt 0:00:24]} Kc7 {[%emt 0:00:36]} 40. Rh8 {[%emt 0:00:38]} Rd2 {[%emt 0:00:48]} 41. Be3 {[%emt 0:00:06]} Rd1 {[%emt 0:00:12]} 42. f5 {[%emt 0:00:18]} Bc8 {[%emt 0:00:11]} 43. Rxh7 {[%emt 0:00:11]} d4 {[%emt 0:00:47]} 44. Bf4+ {[%emt 0:00:06]} Kc6 {[%emt 0:00:06]} 45. Rxf7 {[%emt 0:00:06]} Ba6 {[%emt 0:00:16]} 46. Rc7+ {[%emt 0:00:17]} Kb5 {[%emt 0:00:10]} 47. g5 {[%emt 0:00:11]} Ra1 {[%emt 0:00:39]} 48. g6 {[%emt 0:00:16]} Ra2 {[%emt 0:00:07]} 49. g7 {[%emt 0:00:23]} d3 {[%emt 0:00:04]} 50. g8=Q {[%emt 0:00:06]} Rxe2+ {[%emt 0:00:09]} 51. Kf1 {[%emt 0:00:11]} 1-0

[Event "1st Bangalore GM-Open-B 2024"]
[Site "Bangalore"]
[Date "2024.01.20"]
[Round "7.1"]
[White "Selvamurugan B"]
[Black "Bapat Aniket"]
[Result "1-0"]
[ECO "B31"]
[WhiteElo "1920"]
[BlackElo "1698"]
[Annotator "NA RC"]
[PlyCount "73"]
[EventDate "2024.01.20"]
[EventType "swiss"]
[EventCountry "IND"]
[SourceTitle "playchess.com"]
[Source "ChessBase"]
[SourceQuality "1"]
[TimeControl "3600+30"]

1. e4 {[%emt 0:01:09]} c5 {[%emt 0:00:13]} 2. Nf3 {[%emt 0:00:05]} Nc6 {[%emt 0:00:04]} 3. Bb5 {[%emt 0:00:04]} Nf6 {[%emt 0:00:07]} 4. e5 {[%emt 0:01:18]} Nd5 {[%emt 0:00:07]} 5. Nc3 {[%emt 0:00:11]} Nc7 {[%emt 0:00:04]} 6. Bxc6 {[%emt 0:00:09]} dxc6 {[%emt 0:00:05]} 7. O-O {[%emt 0:00:20]} g6 {[%emt 0:02:07]} 8. Re1 {[%emt 0:00:11]} Bg7 {[%emt 0:00:05]} 9. Ne4 {[%emt 0:00:04]} b6 {[%emt 0:01:07]} 10. Nf6+ {[%emt 0:03:34]} Kf8 {[%emt 0:00:02]} 11. Ne4 {[%emt 0:00:34]} h6 {[%emt 0:04:14]} 12. d3 {[%emt 0:01:48]} Kg8 {[%emt 0:00:07]} 13. a4 {[%emt 0:00:27]} Kh7 {[%emt 0:00:42]} 14. a5 {[%emt 0:00:50]} f5 {[%emt 0:01:23]} 15. exf6 {[%emt 0:02:39]} exf6 {[%emt 0:00:10]} 16. Qe2 {[%emt 0:00:15]} f5 {[%emt 0:07:01]} 17. axb6 {[%emt 0:00:48]} axb6 {[%emt 0:00:05]} 18. Rxa8 {[%emt 0:00:29]} Nxa8 {[%emt 0:00:12]} 19. Neg5+ {[%emt 0:00:36]} hxg5 {[%emt 0:06:23]} 20. Nxg5+ {[%emt 0:00:11]} Qxg5 {[%emt 0:00:04]} 21. Bxg5 {[%emt 0:00:05]} Nc7 {[%emt 0:01:12]} 22. h4 {[%emt 0:00:52]} Ne6 {[%emt 0:01:57]} 23. Ra1 {[%emt 0:00:41]} Re8 {[%emt 0:01:29]} 24. Ra8 {[%emt 0:01:37]} Nc7 {[%emt 0:01:24]} 25. Qxe8 {[%emt 0:00:06]} Nxe8 {[%emt 0:00:04]} 26. Rxc8 {[%emt 0:00:05]} Nd6 {[%emt 0:00:52]} 27. Rxc6 {[%emt 0:00:07]} Nb5 {[%emt 0:00:07]} 28. Rxb6 {[%emt 0:00:13]} Nc7 {[%emt 0:02:25]} 29. Rb7 {[%emt 0:00:14]} Ne6 {[%emt 0:00:19]} 30. Bf6 {[%emt 0:00:07]} Kh6 {[%emt 0:00:04]} 31. Bxg7+ {[%emt 0:00:06]} Nxg7 {[%emt 0:00:07]} 32. Rxg7 {[%emt 0:00:08]} Kxg7 {[%emt 0:00:03]} 33. f3 {[%emt 0:00:14]} Kf6 {[%emt 0:00:21]} 34. g4 {[%emt 0:00:06]} Ke5 {[%emt 0:00:25]} 35. h5 {[%emt 0:00:10]} gxh5 {[%emt 0:00:02]} 36. gxh5 {[%emt 0:00:05]} f4 {[%emt 0:00:05]} 37. c3 {[%emt 0:00:07]} 1-0

[Event "1st Bangalore GM-Open-B 2024"]
[Site "Bangalore"]
[Date "2024.01.20"]
[Round "7.2"]
[White "Afreed T Khan"]
[Black "Jaidambareesh N R"]
[Result "0-1"]
[ECO "D85"]
[WhiteElo "1668"]
[BlackElo "1757"]
[Annotator "NA RC"]
[PlyCount "64"]
[EventDate "2024.01.20"]
[EventType "swiss"]
[EventCountry "IND"]
[SourceTitle "playchess.com"]
[Source "ChessBase"]
[SourceQuality "1"]
[TimeControl "3600+30"]

1. d4 {[%emt 0:03:43]} Nf6 {[%emt 0:01:20]} 2. c4 {[%emt 0:00:45]} g6 {[%emt 0:00:09]} 3. Nc3 {[%emt 0:00:07]} d5 {[%emt 0:00:08]} 4. cxd5 {[%emt 0:00:50]} Nxd5 {[%emt 0:00:13]} 5. e4 {[%emt 0:00:08]} Nxc3 {[%emt 0:00:09]} 6. bxc3 {[%emt 0:00:08]} Bg7 {[%emt 0:00:09]} 7. Nf3 {[%emt 0:00:44]} c5 {[%emt 0:00:07]} 8. Bc4 {[%emt 0:02:39]} O-O {[%emt 0:00:09]} 9. e5 {[%emt 0:06:50]} Bg4 {[%emt 0:01:47]} 10. Be3 {[%emt 0:02:16]} Nc6 {[%emt 0:00:24]} 11. O-O {[%emt 0:00:47]} Qc7 {[%emt 0:02:31]} 12. Be2 {[%emt 0:01:33]} Rfd8 {[%emt 0:01:04]} 13. Qa4 {[%emt 0:00:54]} a6 {[%emt 0:02:22]} 14. Rfd1 {[%emt 0:01:29]} b5 {[%emt 0:00:49]} 15. Qa3 {[%emt 0:01:12]} cxd4 {[%emt 0:01:48]} 16. cxd4 {[%emt 0:00:29]} Be6 {[%emt 0:00:20]} 17. Rac1 {[%emt 0:03:38]} Bd5 {[%emt 0:01:34]} 18. Ne1 {[%emt 0:01:27]} Qa5 {[%emt 0:03:56]} 19. Qc5 {[%emt 0:09:40]} e6 {[%emt 0:03:06]} 20. Nd3 {[%emt 0:08:52]} Bf8 {[%emt 0:08:41]} 21. Qc3 {[%emt 0:00:45]} Qxa2 {[%emt 0:01:05]} 22. Bf3 {[%emt 0:02:34]} Bxf3 {[%emt 0:02:08]} 23. gxf3 {[%emt 0:00:03]} Rdc8 {[%emt 0:00:09]} 24. Nf4 {[%emt 0:02:27]} Ne7 {[%emt 0:02:52]} 25. Qe1 {[%emt 0:01:47]} Nd5 {[%emt 0:01:29]} 26. Ra1 {[%emt 0:00:00]} Qb3 {[%emt 0:00:24]} 27. Rdb1 {[%emt 0:00:57]} Qc3 {[%emt 0:00:07]} 28. Qxc3 {[%emt 0:04:51]} Nxc3 {[%emt 0:01:40]} 29. Rb3 {[%emt 0:01:52]} a5 {[%emt 0:02:10]} 30. d5 {[%emt 0:01:46]} a4 {[%emt 0:01:51]} 31. Rb2 {[%emt 0:00:30]} exd5 {[%emt 0:00:09]} 32. Bd4 {[%emt 0:00:36]} b4 {[%emt 0:00:29]} 0-1

[Event "1st Bangalore GM-Open-B 2024"]
[Site "Bangalore"]
[Date "2024.01.20"]
[Round "7.3"]
[White "Kadav Omkar"]
[Black "Aadinath Harilal"]
[Result "1-0"]
[ECO "C01"]
[WhiteElo "1725"]
[BlackElo "1474"]
[Annotator "NA RC"]
[PlyCount "79"]
[EventDate "2024.01.20"]
[EventType "swiss"]
[EventCountry "IND"]
[SourceTitle "playchess.com"]
[Source "ChessBase"]
[SourceQuality "1"]
[TimeControl "3600+30"]

1. e4 {[%emt 0:05:17]} e6 {[%emt 0:00:03]} 2. d4 {[%emt 0:00:11]} d5 {[%emt 0:00:02]} 3. Bd3 {[%emt 0:00:17]} c5 {[%emt 0:00:58]} 4. exd5 {[%emt 0:00:19]} exd5 {[%emt 0:00:03]} 5. Nf3 {[%emt 0:01:23]} Nf6 {[%emt 0:00:30]} 6. O-O {[%emt 0:00:16]} c4 {[%emt 0:07:47]} 7. Re1+ {[%emt 0:00:36]} Be7 {[%emt 0:00:11]} 8. Bf1 {[%emt 0:00:28]} O-O {[%emt 0:00:40]} 9. b3 {[%emt 0:00:28]} cxb3 {[%emt 0:01:42]} 10. axb3 {[%emt 0:00:26]} Nc6 {[%emt 0:01:15]} 11. h3 {[%emt 0:03:29]} Bf5 {[%emt 0:02:28]} 12. c4 {[%emt 0:01:16]} dxc4 {[%emt 0:08:26]} 13. bxc4 {[%emt 0:00:13]} Nb4 {[%emt 0:02:06]} 14. Na3 {[%emt 0:05:16]} Rc8 {[%emt 0:04:11]} 15. Bb2 {[%emt 0:03:28]} a6 {[%emt 0:04:53]} 16. Qb3 {[%emt 0:05:31]} b6 {[%emt 0:04:07]} 17. Bc3 {[%emt 0:02:45]} a5 {[%emt 0:09:12]} 18. Re5 {[%emt 0:12:13]} Bg6 {[%emt 0:03:47]} 19. Re3 {[%emt 0:06:16]} Bd6 {[%emt 0:04:56]} 20. Ne5 {[%emt 0:01:49]} Bf5 {[%emt 0:00:42]} 21. g4 {[%emt 0:01:33]} Bg6 {[%emt 0:00:45]} 22. Bg2 {[%emt 0:01:08]} Re8 {[%emt 0:01:06]} 23. Rae1 {[%emt 0:02:16]} Kf8 {[%emt 0:07:14]} 24. g5 {[%emt 0:01:32]} Bxe5 {[%emt 0:00:07]} 25. gxf6 {[%emt 0:01:56]} gxf6 {[%emt 0:00:18]} 26. dxe5 {[%emt 0:01:41]} Nd3 {[%emt 0:00:36]} 27. Rd1 {[%emt 0:03:07]} fxe5 {[%emt 0:00:21]} 28. Rexd3 {[%emt 0:00:29]} Bxd3 {[%emt 0:00:26]} 29. Rxd3 {[%emt 0:00:06]} Qg5 {[%emt 0:03:59]} 30. Bd2 {[%emt 0:01:23]} Qh4 {[%emt 0:00:41]} 31. Rg3 {[%emt 0:01:16]} e4 {[%emt 0:00:37]} 32. Be3 {[%emt 0:03:57]} Rcd8 {[%emt 0:00:52]} 33. Qxb6 {[%emt 0:00:33]} f5 {[%emt 0:01:11]} 34. Bh6+ {[%emt 0:01:14]} Kf7 {[%emt 0:00:19]} 35. Rg7+ {[%emt 0:00:22]} Kf8 {[%emt 0:00:02]} 36. Qc5+ {[%emt 0:00:50]} Re7 {[%emt 0:00:15]} 37. Rxe7+ {[%emt 0:00:20]} Kg8 {[%emt 0:00:17]} 38. Rd7 {[%emt 0:00:51]} Re8 {[%emt 0:00:17]} 39. Qd5+ {[%emt 0:00:15]} Kh8 {[%emt 0:00:03]} 40. Bg7# {[%emt 0:00:09]} 1-0

[Event "1st Bangalore GM-Open-B 2024"]
[Site "Bangalore"]
[Date "2024.01.20"]
[Round "7.4"]
[White "Pranay Akula"]
[Black "Gandhi Samarth"]
[Result "1-0"]
[ECO "B24"]
[WhiteElo "1712"]
[BlackElo "1336"]
[Annotator "NA RC"]
[PlyCount "109"]
[EventDate "2024.01.20"]
[EventType "swiss"]
[EventCountry "IND"]
[SourceTitle "playchess.com"]
[Source "ChessBase"]
[SourceQuality "1"]
[TimeControl "3600+30"]

1. e4 {[%emt 0:00:02]} c5 {[%emt 0:00:07]} 2. Nc3 {[%emt 0:00:08]} e6 {[%emt 0:00:26]} 3. Nge2 {[%emt 0:00:05]} Nc6 {[%emt 0:01:10]} 4. g3 {[%emt 0:00:13]} Nf6 {[%emt 0:02:07]} 5. Bg2 {[%emt 0:00:07]} Be7 {[%emt 0:02:41]} 6. O-O {[%emt 0:00:13]} O-O {[%emt 0:00:19]} 7. h3 {[%emt 0:00:21]} d5 {[%emt 0:08:08]} 8. exd5 {[%emt 0:00:09]} Nxd5 {[%emt 0:06:39]} 9. Nxd5 {[%emt 0:00:22]} exd5 {[%emt 0:00:05]} 10. d4 {[%emt 0:00:07]} Be6 {[%emt 0:02:05]} 11. c3 {[%emt 0:01:04]} Qd7 {[%emt 0:02:48]} 12. Kh2 {[%emt 0:00:38]} cxd4 {[%emt 0:04:41]} 13. Nxd4 {[%emt 0:00:12]} Nxd4 {[%emt 0:00:07]} 14. Qxd4 {[%emt 0:01:47]} Bf6 {[%emt 0:00:15]} 15. Qd3 {[%emt 0:00:21]} Rac8 {[%emt 0:03:29]} 16. Rd1 {[%emt 0:02:20]} Rfd8 {[%emt 0:00:13]} 17. Be3 {[%emt 0:00:08]} Qa4 {[%emt 0:03:45]} 18. Bd4 {[%emt 0:02:47]} Bxd4 {[%emt 0:02:50]} 19. Qxd4 {[%emt 0:00:06]} Rc4 {[%emt 0:03:06]} 20. Qe3 {[%emt 0:00:38]} Qa5 {[%emt 0:13:58]} 21. a3 {[%emt 0:03:41]} Qa4 {[%emt 0:01:41]} 22. Rd2 {[%emt 0:01:56]} h6 {[%emt 0:02:15]} 23. Rad1 {[%emt 0:00:00]} Re8 {[%emt 0:06:11]} 24. Qd3 {[%emt 0:00:00]} Rd8 {[%emt 0:01:00]} 25. Qb1 {[%emt 0:01:10]} Qa5 {[%emt 0:00:41]} 26. Rd4 {[%emt 0:01:12]} Qb6 {[%emt 0:01:03]} 27. Kg1 {[%emt 0:04:36]} Re8 {[%emt 0:00:59]} 28. Qc2 {[%emt 0:01:24]} Rec8 {[%emt 0:00:33]} 29. Qe2 {[%emt 0:00:33]} Rxd4 {[%emt 0:01:04]} 30. Rxd4 {[%emt 0:00:15]} Rc4 {[%emt 0:00:33]} 31. Rd2 {[%emt 0:00:53]} d4 {[%emt 0:00:17]} 32. Rxd4 {[%emt 0:00:19]} Rxd4 {[%emt 0:00:05]} 33. cxd4 {[%emt 0:00:03]} Qxd4 {[%emt 0:00:03]} 34. Bxb7 {[%emt 0:00:10]} Qd7 {[%emt 0:00:55]} 35. Bg2 {[%emt 0:00:09]} Bxh3 {[%emt 0:00:49]} 36. Bxh3 {[%emt 0:00:04]} Qxh3 {[%emt 0:00:07]} 37. Qe8+ {[%emt 0:00:03]} Kh7 {[%emt 0:00:10]} 38. Qxf7 {[%emt 0:00:13]} a5 {[%emt 0:01:31]} 39. Qd5 {[%emt 0:00:17]} Qc8 {[%emt 0:02:17]} 40. b4 {[%emt 0:01:43]} Qc1+ {[%emt 0:00:00]} 41. Kg2 {[%emt 0:01:02]} a4 {[%emt 0:00:00]} 42. Qf5+ {[%emt 0:00:30]} Kh8 {[%emt 0:00:00]} 43. Qf8+ {[%emt 0:00:24]} Kh7 {[%emt 0:00:00]} 44. Qf3 {[%emt 0:00:15]} Qc4 {[%emt 0:00:29]} 45. Qf5+ {[%emt 0:00:50]} Kh8 {[%emt 0:00:28]} 46. Qc5 {[%emt 0:00:15]} Qe4+ {[%emt 0:00:30]} 47. Kh2 {[%emt 0:00:24]} Qg4 {[%emt 0:00:46]} 48. b5 {[%emt 0:00:56]} h5 {[%emt 0:00:32]} 49. Qf8+ {[%emt 0:00:56]} Kh7 {[%emt 0:00:06]} 50. Qf4 {[%emt 0:00:06]} Qd1 {[%emt 0:00:40]} 51. b6 {[%emt 0:01:38]} Qb3 {[%emt 0:00:18]} 52. Qe4+ {[%emt 0:00:09]} Kh6 {[%emt 0:00:55]} 53. b7 {[%emt 0:00:20]} Qb2 {[%emt 0:00:32]} 54. Qf4+ {[%emt 0:00:11]} g5 {[%emt 0:00:09]} 55. Qf8+ {[%emt 0:00:04]} 1-0